[Event "Early-Titled-Tuesday-Blitz-September-12-2023"]
[Site "Chess.com"]
[Date "2023.09.12"]
[Round "8"]
[White "MBA_CHESS_2021"]
[Black "ChessQueen"]
[Result "0-1"]
[WhiteElo "2158"]
[BlackElo "2716"]
[TimeControl "180+1"]
[EndTime "9:28:30 PDT"]
[Termination "ChessQueen won on time"]

1. e4 {[%clk 0:03:00.9]} 1... c6 {[%clk 0:02:58.8]} 2. d4 {[%clk 0:02:59]} 2...
d5 {[%clk 0:02:59.1]} 3. e5 {[%clk 0:02:59.7]} 3... c5 {[%clk 0:02:59.5]} 4.
dxc5 {[%clk 0:02:59.4]} 4... e6 {[%clk 0:02:59.9]} 5. Nf3 {[%clk 0:02:57.8]}
5... Bxc5 {[%clk 0:02:58.9]} 6. Bd3 {[%clk 0:02:58.4]} 6... Ne7 {[%clk
0:02:56.4]} 7. O-O {[%clk 0:02:58.9]} 7... Ng6 {[%clk 0:02:56.6]} 8. Nc3 {[%clk
0:02:53.1]} 8... Nc6 {[%clk 0:02:54.3]} 9. Re1 {[%clk 0:02:52.2]} 9... a6 {[%clk
0:02:46.6]} 10. a3 {[%clk 0:02:49.6]} 10... Qb6 {[%clk 0:02:43.6]} 11. Qe2
{[%clk 0:02:47]} 11... Nd4 {[%clk 0:02:40.2]} 12. Nxd4 {[%clk 0:02:44.1]} 12...
Bxd4 {[%clk 0:02:40.6]} 13. Kh1 {[%clk 0:01:50.3]} 13... Bxf2 {[%clk 0:02:35.2]}
14. Rf1 {[%clk 0:01:49.5]} 14... Bd4 {[%clk 0:02:30.2]} 15. Qh5 {[%clk
0:01:13.1]} 15... Qc7 {[%clk 0:02:20]} 16. Bxg6 {[%clk 0:00:28.2]} 16... fxg6
{[%clk 0:02:19.7]} 17. Qf3 {[%clk 0:00:28.7]} 17... Bxe5 {[%clk 0:02:14.8]} 18.
Bd2 {[%clk 0:00:28.1]} 18... Bf6 {[%clk 0:01:27.1]} 19. Nxd5 {[%clk 0:00:18.3]}
19... exd5 {[%clk 0:01:27.3]} 20. Rae1+ {[%clk 0:00:17.9]} 20... Kd8 {[%clk
0:01:27.7]} 21. Qxd5+ {[%clk 0:00:16.4]} 21... Bd7 {[%clk 0:01:27.8]} 22. Ba5
{[%clk 0:00:14.2]} 22... Rc8 {[%clk 0:01:11.7]} 23. Bxc7+ {[%clk 0:00:12.4]}
23... Rxc7 {[%clk 0:01:12.6]} 24. Rd1 {[%clk 0:00:11.9]} 24... Kc8 {[%clk
0:01:11.9]} 25. Rfe1 {[%clk 0:00:10.9]} 25... Rd8 {[%clk 0:01:11.6]} 26. c3
{[%clk 0:00:10.3]} 26... Bg4 {[%clk 0:01:07.6]} 27. Qb3 {[%clk 0:00:09.3]} 27...
Bxd1 {[%clk 0:01:04.4]} 28. Rxd1 {[%clk 0:00:09.3]} 28... Re8 {[%clk 0:01:01.6]}
29. g3 {[%clk 0:00:08.7]} 29... Rce7 {[%clk 0:00:59.4]} 30. Qc4+ {[%clk
0:00:08.4]} 30... Kb8 {[%clk 0:00:59.6]} 31. Kg2 {[%clk 0:00:08.3]} 31... Re2+
{[%clk 0:00:59]} 32. Kh3 {[%clk 0:00:08.5]} 32... R2e7 {[%clk 0:00:55.7]} 33. b4
{[%clk 0:00:08.2]} 33... Rc8 {[%clk 0:00:54.3]} 34. Qd5 {[%clk 0:00:07.5]} 34...
Rxc3 {[%clk 0:00:52.1]} 35. Qd6+ {[%clk 0:00:07.4]} 35... Ka7 {[%clk 0:00:47.6]}
36. a4 {[%clk 0:00:07.7]} 36... Rc6 {[%clk 0:00:47.3]} 37. Qd5 {[%clk
0:00:07.4]} 37... Re5 {[%clk 0:00:45]} 38. Qd4+ {[%clk 0:00:06.8]} 38... Kb8
{[%clk 0:00:45.3]} 39. Qd3 {[%clk 0:00:05.7]} 39... Rce6 {[%clk 0:00:42]} 40. b5
{[%clk 0:00:05.4]} 40... axb5 {[%clk 0:00:34.3]} 41. axb5 {[%clk 0:00:04.9]}
41... Rb6 {[%clk 0:00:34.5]} 42. Rc1 {[%clk 0:00:03.7]} 42... Rexb5 {[%clk
0:00:32.8]} 0-1

[Event "Early-Titled-Tuesday-Blitz-September-12-2023"]
[Site "Chess.com"]
[Date "2023.09.12"]
[Round "8"]
[White "Sjakkerntobi"]
[Black "AsselLesbekova"]
[Result "1/2-1/2"]
[WhiteElo "2531"]
[BlackElo "2353"]
[TimeControl "180+1"]
[EndTime "9:28:32 PDT"]
[Termination "Game drawn by repetition"]

1. f4 {[%clk 0:03:00.9]} 1... d5 {[%clk 0:02:56.7]} 2. Nf3 {[%clk 0:03:01.4]}
2... c5 {[%clk 0:02:57]} 3. g3 {[%clk 0:03:02.1]} 3... Nc6 {[%clk 0:02:57.2]} 4.
Bg2 {[%clk 0:03:02.8]} 4... g6 {[%clk 0:02:57.6]} 5. O-O {[%clk 0:03:03.5]} 5...
Bg7 {[%clk 0:02:58.2]} 6. d3 {[%clk 0:03:02.8]} 6... Nh6 {[%clk 0:02:55.4]} 7.
e4 {[%clk 0:03:02.5]} 7... dxe4 {[%clk 0:02:54.8]} 8. dxe4 {[%clk 0:03:02.8]}
8... Qxd1 {[%clk 0:02:55.5]} 9. Rxd1 {[%clk 0:03:03.5]} 9... Nd4 {[%clk
0:02:53.3]} 10. Nxd4 {[%clk 0:02:57.8]} 10... Bxd4+ {[%clk 0:02:54.2]} 11. Kf1
{[%clk 0:02:56.5]} 11... Ng4 {[%clk 0:02:53.2]} 12. h3 {[%clk 0:02:55]} 12...
Ne3+ {[%clk 0:02:39]} 13. Bxe3 {[%clk 0:02:54.2]} 13... Bxe3 {[%clk 0:02:39.9]}
14. Nc3 {[%clk 0:02:41.2]} 14... Be6 {[%clk 0:02:35.7]} 15. Ke2 {[%clk 0:02:32]}
15... Bd4 {[%clk 0:02:33.3]} 16. Kf3 {[%clk 0:02:31.4]} 16... O-O-O {[%clk
0:02:28.7]} 17. Bf1 {[%clk 0:02:23]} 17... Bxc3 {[%clk 0:02:16.1]} 18. bxc3
{[%clk 0:02:23.9]} 18... h5 {[%clk 0:02:10.7]} 19. a3 {[%clk 0:02:21.2]} 19...
Kc7 {[%clk 0:02:09.6]} 20. Ke3 {[%clk 0:02:09.2]} 20... Kc6 {[%clk 0:01:52.9]}
21. Bg2 {[%clk 0:02:05.4]} 21... Kc7 {[%clk 0:01:43.5]} 22. Rab1 {[%clk
0:02:02.6]} 22... b6 {[%clk 0:01:42.1]} 23. Rd3 {[%clk 0:01:59.8]} 23... Bc4
{[%clk 0:01:40.8]} 24. Rdd1 {[%clk 0:01:59]} 24... Ba2 {[%clk 0:01:35.3]} 25.
Ra1 {[%clk 0:01:57.2]} 25... Bc4 {[%clk 0:01:35.9]} 26. Bf3 {[%clk 0:01:51.5]}
26... Be6 {[%clk 0:01:30.1]} 27. h4 {[%clk 0:01:51.9]} 27... Bc4 {[%clk
0:01:27.7]} 28. Rxd8 {[%clk 0:01:49.1]} 28... Rxd8 {[%clk 0:01:28.1]} 29. Rd1
{[%clk 0:01:50]} 29... Rxd1 {[%clk 0:01:25.3]} 30. Bxd1 {[%clk 0:01:50.9]} 30...
Kd6 {[%clk 0:01:14.7]} 31. g4 {[%clk 0:01:35.6]} 31... hxg4 {[%clk 0:01:11.9]}
32. Bxg4 {[%clk 0:01:36.5]} 32... b5 {[%clk 0:01:04.4]} 33. e5+ {[%clk
0:01:32.1]} 33... Kd5 {[%clk 0:00:59.3]} 34. Bd7 {[%clk 0:01:24.5]} 34... a6
{[%clk 0:00:43.9]} 35. e6 {[%clk 0:01:10.1]} 35... Kd6 {[%clk 0:00:30.7]} 36.
exf7 {[%clk 0:00:56]} 36... Bxf7 {[%clk 0:00:31.6]} 37. Bc8 {[%clk 0:00:56]}
37... a5 {[%clk 0:00:31.9]} 38. f5 {[%clk 0:00:52.8]} 38... e6 {[%clk
0:00:27.5]} 39. fxg6 {[%clk 0:00:49.6]} 39... Bxg6 {[%clk 0:00:27.5]} 40. Ba6
{[%clk 0:00:50.3]} 40... Kc6 {[%clk 0:00:23.4]} 41. Kd2 {[%clk 0:00:46.9]} 41...
Kb6 {[%clk 0:00:15.4]} 42. Bc8 {[%clk 0:00:46.9]} 42... Bf5 {[%clk 0:00:14.8]}
43. h5 {[%clk 0:00:47.1]} 43... Kc7 {[%clk 0:00:15.3]} 44. Ba6 {[%clk
0:00:41.8]} 44... Kb6 {[%clk 0:00:15.8]} 45. Bc8 {[%clk 0:00:38.4]} 45... Kc7
{[%clk 0:00:16.3]} 46. Ba6 {[%clk 0:00:34.1]} 46... Kb6 {[%clk 0:00:16.9]} 47.
Bc8 {[%clk 0:00:33.6]} 1/2-1/2

[Event "Early-Titled-Tuesday-Blitz-September-12-2023"]
[Site "Chess.com"]
[Date "2023.09.12"]
[Round "8"]
[White "Zarinur"]
[Black "benny_aizenberg"]
[Result "0-1"]
[WhiteElo "2506"]
[BlackElo "2630"]
[TimeControl "180+1"]
[EndTime "9:28:36 PDT"]
[Termination "benny_aizenberg won on time"]

1. e4 {[%clk 0:02:56.6]} 1... g5 {[%clk 0:02:59.2]} 2. d4 {[%clk 0:02:54.4]}
2... g4 {[%clk 0:02:57.8]} 3. Qxg4 {[%clk 0:02:49.6]} 3... d5 {[%clk 0:02:56.6]}
4. Qe2 {[%clk 0:02:24.8]} 4... dxe4 {[%clk 0:02:50.9]} 5. Qxe4 {[%clk
0:02:21.6]} 5... Nf6 {[%clk 0:02:47.5]} 6. Qd3 {[%clk 0:02:20]} 6... Bg7 {[%clk
0:02:45]} 7. Nf3 {[%clk 0:02:18.7]} 7... c5 {[%clk 0:02:41.4]} 8. dxc5 {[%clk
0:02:13.7]} 8... Qa5+ {[%clk 0:02:40]} 9. Qc3 {[%clk 0:02:07.1]} 9... Qc7 {[%clk
0:02:32.2]} 10. Na3 {[%clk 0:01:59.5]} 10... O-O {[%clk 0:02:28.5]} 11. Nb5
{[%clk 0:01:47.3]} 11... Qd8 {[%clk 0:02:24.6]} 12. Bd3 {[%clk 0:01:34.2]} 12...
Na6 {[%clk 0:02:14.8]} 13. O-O {[%clk 0:01:32.5]} 13... Ne4 {[%clk 0:02:03.3]}
14. Qc4 {[%clk 0:01:17.6]} 14... Nexc5 {[%clk 0:02:01.1]} 15. Rd1 {[%clk
0:00:56.9]} 15... Nxd3 {[%clk 0:01:52.5]} 16. Rxd3 {[%clk 0:00:57.8]} 16... Qb6
{[%clk 0:01:44.7]} 17. Be3 {[%clk 0:00:55.5]} 17... Qg6 {[%clk 0:01:38.6]} 18.
Bd4 {[%clk 0:00:48.9]} 18... Be6 {[%clk 0:01:34.7]} 19. Qa4 {[%clk 0:00:42.5]}
19... Rfc8 {[%clk 0:01:16.6]} 20. Ne5 {[%clk 0:00:26.5]} 20... Bxe5 {[%clk
0:01:04.5]} 21. Bxe5 {[%clk 0:00:25.4]} 21... Nc5 {[%clk 0:01:04.7]} 22. Qh4
{[%clk 0:00:18.6]} 22... Nxd3 {[%clk 0:01:04.4]} 23. cxd3 {[%clk 0:00:19.5]}
23... Rc5 {[%clk 0:00:58.4]} 24. Nc7 {[%clk 0:00:13.8]} 24... Rc8 {[%clk
0:00:55.9]} 25. Qd4 {[%clk 0:00:07.9]} 25... Rc6 {[%clk 0:00:37.5]} 26. h4
{[%clk 0:00:06]} 26... f6 {[%clk 0:00:17.6]} 27. Bg3 {[%clk 0:00:04.6]} 27...
Bf7 {[%clk 0:00:17]} 28. Kh2 {[%clk 0:00:02.7]} 28... e5 {[%clk 0:00:16.6]} 29.
Qd7 {[%clk 0:00:01.9]} 29... R6xc7 {[%clk 0:00:16.8]} 30. Qh3 {[%clk 0:00:02.5]}
30... Qxd3 {[%clk 0:00:15.6]} 31. h5 {[%clk 0:00:01.7]} 31... Qd7 {[%clk
0:00:13]} 32. Qh4 {[%clk 0:00:01.3]} 32... Qf5 {[%clk 0:00:13.6]} 0-1

[Event "Early-Titled-Tuesday-Blitz-September-12-2023"]
[Site "Chess.com"]
[Date "2023.09.12"]
[Round "8"]
[White "Cayse"]
[Black "tdf98pantani"]
[Result "0-1"]
[WhiteElo "2845"]
[BlackElo "2746"]
[TimeControl "180+1"]
[EndTime "9:28:39 PDT"]
[Termination "tdf98pantani won by resignation"]

1. e4 {[%clk 0:03:00.9]} 1... c5 {[%clk 0:02:55.5]} 2. Nf3 {[%clk 0:03:00.6]}
2... a6 {[%clk 0:02:48.9]} 3. c4 {[%clk 0:02:57.1]} 3... e6 {[%clk 0:02:41.8]}
4. Nc3 {[%clk 0:02:56.3]} 4... Nc6 {[%clk 0:02:30.4]} 5. d4 {[%clk 0:02:56.1]}
5... cxd4 {[%clk 0:02:30.7]} 6. Nxd4 {[%clk 0:02:57]} 6... Bc5 {[%clk
0:02:28.5]} 7. Nxc6 {[%clk 0:02:55.5]} 7... bxc6 {[%clk 0:02:24.9]} 8. Bd3
{[%clk 0:02:55.2]} 8... d6 {[%clk 0:02:21.5]} 9. O-O {[%clk 0:02:55.1]} 9... Nf6
{[%clk 0:02:21.3]} 10. Kh1 {[%clk 0:02:53.4]} 10... e5 {[%clk 0:02:19.5]} 11. f4
{[%clk 0:02:46.2]} 11... O-O {[%clk 0:02:12.7]} 12. Qf3 {[%clk 0:02:42]} 12...
exf4 {[%clk 0:02:06.4]} 13. Bxf4 {[%clk 0:02:41]} 13... Bd4 {[%clk 0:01:56.6]}
14. Rad1 {[%clk 0:02:36.8]} 14... Qe7 {[%clk 0:01:51.7]} 15. h3 {[%clk
0:02:36.5]} 15... Be6 {[%clk 0:01:46.1]} 16. Bb1 {[%clk 0:02:16.8]} 16... Be5
{[%clk 0:01:45.4]} 17. b3 {[%clk 0:02:16.7]} 17... Nd7 {[%clk 0:01:40.8]} 18.
Ne2 {[%clk 0:02:08.7]} 18... f6 {[%clk 0:01:27.8]} 19. Bxe5 {[%clk 0:02:00.1]}
19... dxe5 {[%clk 0:01:21.3]} 20. Nc3 {[%clk 0:01:52.1]} 20... Nc5 {[%clk
0:01:20.6]} 21. Qe3 {[%clk 0:01:51.9]} 21... a5 {[%clk 0:01:18.7]} 22. Rd2
{[%clk 0:01:50.5]} 22... Rfd8 {[%clk 0:01:17.1]} 23. Rfd1 {[%clk 0:01:50]} 23...
Rxd2 {[%clk 0:01:17]} 24. Rxd2 {[%clk 0:01:50.9]} 24... Rb8 {[%clk 0:01:13.9]}
25. Bc2 {[%clk 0:01:50.7]} 25... Rb7 {[%clk 0:01:01.4]} 26. Kh2 {[%clk
0:01:49.7]} 26... Rd7 {[%clk 0:00:48.2]} 27. Rxd7 {[%clk 0:01:27.5]} 27... Bxd7
{[%clk 0:00:48.3]} 28. Bd1 {[%clk 0:01:22.8]} 28... g6 {[%clk 0:00:46.2]} 29. a3
{[%clk 0:01:21.5]} 29... Ne6 {[%clk 0:00:42.1]} 30. Qa7 {[%clk 0:01:21.2]} 30...
Qd6 {[%clk 0:00:28]} 31. Bg4 {[%clk 0:01:07.3]} 31... Qd4 {[%clk 0:00:19.3]} 32.
Qxd4 {[%clk 0:01:02]} 32... exd4 {[%clk 0:00:19.5]} 33. Na4 {[%clk 0:01:01.9]}
33... h5 {[%clk 0:00:14.5]} 34. Bxe6+ {[%clk 0:01:01.3]} 34... Bxe6 {[%clk
0:00:15.4]} 35. Kg3 {[%clk 0:01:01.6]} 35... g5 {[%clk 0:00:15.3]} 36. Kf3
{[%clk 0:01:00.1]} 36... h4 {[%clk 0:00:14.8]} 37. Nc5 {[%clk 0:00:58.8]} 37...
Bc8 {[%clk 0:00:14.1]} 38. Ke2 {[%clk 0:00:58.5]} 38... f5 {[%clk 0:00:08.8]}
39. Kd3 {[%clk 0:00:57.4]} 39... f4 {[%clk 0:00:07.4]} 40. Kxd4 {[%clk
0:00:57.7]} 40... f3 {[%clk 0:00:07.8]} 41. gxf3 {[%clk 0:00:57.7]} 41... Bxh3
{[%clk 0:00:08.5]} 42. Ke3 {[%clk 0:00:57.5]} 42... Kf7 {[%clk 0:00:01.2]} 43.
Nb7 {[%clk 0:00:50.1]} 43... a4 {[%clk 0:00:01.5]} 44. bxa4 {[%clk 0:00:49.8]}
44... Bf1 {[%clk 0:00:02.4]} 45. a5 {[%clk 0:00:49.3]} 45... h3 {[%clk
0:00:02.4]} 46. Kf2 {[%clk 0:00:48.1]} 46... h2 {[%clk 0:00:02.8]} 0-1

[Event "Early-Titled-Tuesday-Blitz-September-12-2023"]
[Site "Chess.com"]
[Date "2023.09.12"]
[Round "8"]
[White "FoxOnTheRun97"]
[Black "the_chess_child"]
[Result "0-1"]
[WhiteElo "2564"]
[BlackElo "2891"]
[TimeControl "180+1"]
[EndTime "9:28:40 PDT"]
[Termination "the_chess_child won on time"]

1. d4 {[%clk 0:02:58.3]} 1... Nf6 {[%clk 0:02:59.5]} 2. Bg5 {[%clk 0:02:57.8]}
2... g6 {[%clk 0:02:58.7]} 3. Nd2 {[%clk 0:02:56.7]} 3... Bg7 {[%clk 0:02:57.3]}
4. e3 {[%clk 0:02:56.8]} 4... O-O {[%clk 0:02:57.3]} 5. Ngf3 {[%clk 0:02:54.7]}
5... d6 {[%clk 0:02:57.7]} 6. c3 {[%clk 0:02:53.9]} 6... Nbd7 {[%clk 0:02:58]}
7. Be2 {[%clk 0:02:53.7]} 7... h6 {[%clk 0:02:58.5]} 8. Bh4 {[%clk 0:02:53.7]}
8... e5 {[%clk 0:02:58.9]} 9. O-O {[%clk 0:02:53.2]} 9... Qe8 {[%clk 0:02:57.8]}
10. dxe5 {[%clk 0:02:52.3]} 10... dxe5 {[%clk 0:02:58.7]} 11. a4 {[%clk
0:02:47.3]} 11... a6 {[%clk 0:02:54.7]} 12. Nc4 {[%clk 0:02:41]} 12... e4 {[%clk
0:02:47.5]} 13. Nd4 {[%clk 0:02:33.3]} 13... Ne5 {[%clk 0:02:47.4]} 14. Bg3
{[%clk 0:02:27.2]} 14... Nxc4 {[%clk 0:02:43.9]} 15. Bxc4 {[%clk 0:02:28.1]}
15... Bg4 {[%clk 0:02:44.1]} 16. Qb3 {[%clk 0:02:23.3]} 16... c5 {[%clk
0:02:41.8]} 17. Nc2 {[%clk 0:02:05.9]} 17... Qc6 {[%clk 0:02:40.8]} 18. h3
{[%clk 0:02:01.5]} 18... Bf5 {[%clk 0:02:39.5]} 19. Rfd1 {[%clk 0:01:55.9]}
19... Rfd8 {[%clk 0:02:38.3]} 20. Bxf7+ {[%clk 0:01:53.7]} 20... Kh7 {[%clk
0:02:37]} 21. Bc4 {[%clk 0:01:50.4]} 21... Rd3 {[%clk 0:02:17.5]} 22. Ne1 {[%clk
0:01:35.5]} 22... Rad8 {[%clk 0:02:15.2]} 23. a5 {[%clk 0:01:19.5]} 23... Rd2
{[%clk 0:02:04.9]} 24. Rxd2 {[%clk 0:01:14.3]} 24... Rxd2 {[%clk 0:02:05.8]} 25.
Qb6 {[%clk 0:01:14.5]} 25... Qxb6 {[%clk 0:02:04.3]} 26. axb6 {[%clk 0:01:15.4]}
26... Rxb2 {[%clk 0:02:04.9]} 27. Bc7 {[%clk 0:01:13.7]} 27... Nd7 {[%clk
0:02:04.1]} 28. Bd5 {[%clk 0:01:00.3]} 28... Nxb6 {[%clk 0:01:55.7]} 29. Bxb7
{[%clk 0:00:59.5]} 29... Bxc3 {[%clk 0:01:56.3]} 30. Bxa6 {[%clk 0:00:40.5]}
30... Nd5 {[%clk 0:01:51.5]} 31. Ba5 {[%clk 0:00:27.6]} 31... Bxa5 {[%clk
0:01:45]} 32. Rxa5 {[%clk 0:00:28.5]} 32... Rb1 {[%clk 0:01:45.7]} 33. Kf1
{[%clk 0:00:28.5]} 33... Nb4 {[%clk 0:01:45.4]} 34. Ke2 {[%clk 0:00:20.6]} 34...
Rb2+ {[%clk 0:01:33]} 35. Kd1 {[%clk 0:00:21]} 35... Rxf2 {[%clk 0:01:25.2]} 36.
Bc4 {[%clk 0:00:21.6]} 36... Nd3 {[%clk 0:01:11.4]} 37. Bxd3 {[%clk 0:00:17]}
37... exd3 {[%clk 0:01:12.3]} 38. Rxc5 {[%clk 0:00:16.9]} 38... d2 {[%clk
0:01:08]} 39. Nf3 {[%clk 0:00:15.9]} 39... Rxg2 {[%clk 0:01:08.5]} 40. Nxd2
{[%clk 0:00:14.7]} 40... Bxh3 {[%clk 0:01:08.6]} 41. Ke1 {[%clk 0:00:12.5]}
41... h5 {[%clk 0:01:07.6]} 42. Nf3 {[%clk 0:00:11.2]} 42... Bg4 {[%clk
0:01:06.4]} 43. Ng5+ {[%clk 0:00:10.9]} 43... Kh6 {[%clk 0:01:06.4]} 44. Nf7+
{[%clk 0:00:11]} 44... Kg7 {[%clk 0:01:07]} 45. Rc7 {[%clk 0:00:10.9]} 45... Kf6
{[%clk 0:01:05.3]} 46. Kf1 {[%clk 0:00:10.8]} 46... Ra2 {[%clk 0:01:01.4]} 47.
Nd6 {[%clk 0:00:10.5]} 47... Ke5 {[%clk 0:00:59.7]} 48. Nc4+ {[%clk 0:00:09.2]}
48... Ke4 {[%clk 0:00:59.4]} 49. Re7+ {[%clk 0:00:09.4]} 49... Kf3 {[%clk
0:00:56.7]} 50. Rf7+ {[%clk 0:00:09.3]} 50... Kg3 {[%clk 0:00:56.6]} 51. Ke1
{[%clk 0:00:04.4]} 51... Re2+ {[%clk 0:00:56.6]} 52. Kf1 {[%clk 0:00:04.6]}
52... Rc2 {[%clk 0:00:57.2]} 0-1

[Event "Early-Titled-Tuesday-Blitz-September-12-2023"]
[Site "Chess.com"]
[Date "2023.09.12"]
[Round "8"]
[White "LuisFSiles"]
[Black "Bastiandash"]
[Result "0-1"]
[WhiteElo "2377"]
[BlackElo "2553"]
[TimeControl "180+1"]
[EndTime "9:28:40 PDT"]
[Termination "Bastiandash won on time"]

1. e4 {[%clk 0:03:00.9]} 1... c5 {[%clk 0:02:56.1]} 2. Nf3 {[%clk 0:03:00.3]}
2... e6 {[%clk 0:02:56.5]} 3. c3 {[%clk 0:03:00.2]} 3... Nf6 {[%clk 0:02:56.5]}
4. e5 {[%clk 0:03:00]} 4... Nd5 {[%clk 0:02:57.3]} 5. Bc4 {[%clk 0:03:00.5]}
5... d6 {[%clk 0:02:57.3]} 6. d4 {[%clk 0:03:00.5]} 6... cxd4 {[%clk 0:02:52]}
7. cxd4 {[%clk 0:03:01.4]} 7... Be7 {[%clk 0:02:52.6]} 8. O-O {[%clk 0:03:00.5]}
8... O-O {[%clk 0:02:52.9]} 9. Qe2 {[%clk 0:03:00.7]} 9... Nc6 {[%clk 0:02:52]}
10. Bd2 {[%clk 0:02:59.7]} 10... Qb6 {[%clk 0:02:20.1]} 11. Nc3 {[%clk
0:01:49.1]} 11... dxe5 {[%clk 0:01:16]} 12. Bxd5 {[%clk 0:01:38.7]} 12... exd5
{[%clk 0:00:49.5]} 13. Nxd5 {[%clk 0:01:38.2]} 13... Qd8 {[%clk 0:00:49.2]} 14.
Nxe7+ {[%clk 0:01:36.7]} 14... Qxe7 {[%clk 0:00:50.1]} 15. dxe5 {[%clk 0:01:32]}
15... Bg4 {[%clk 0:00:50.6]} 16. Bc3 {[%clk 0:01:25.9]} 16... Bxf3 {[%clk
0:00:47.5]} 17. Qxf3 {[%clk 0:01:25.5]} 17... Nxe5 {[%clk 0:00:45.2]} 18. Qe4
{[%clk 0:01:05.1]} 18... Nc6 {[%clk 0:00:40.9]} 19. Qxe7 {[%clk 0:00:57.6]}
19... Nxe7 {[%clk 0:00:41.8]} 20. Bb4 {[%clk 0:00:42.6]} 20... Rfe8 {[%clk
0:00:41.2]} 21. Rfd1 {[%clk 0:00:32.1]} 21... Nc6 {[%clk 0:00:40.6]} 22. Bc3
{[%clk 0:00:29.7]} 22... Rad8 {[%clk 0:00:40.2]} 23. Kf1 {[%clk 0:00:27.1]}
23... f6 {[%clk 0:00:40]} 24. Rxd8 {[%clk 0:00:25.3]} 24... Rxd8 {[%clk
0:00:40.9]} 25. Ke2 {[%clk 0:00:25.4]} 25... Re8+ {[%clk 0:00:40.4]} 26. Kd3
{[%clk 0:00:24.8]} 26... Kf7 {[%clk 0:00:39.6]} 27. b4 {[%clk 0:00:22.3]} 27...
Rd8+ {[%clk 0:00:19.2]} 28. Kc4 {[%clk 0:00:21.2]} 28... Rc8 {[%clk 0:00:19.2]}
29. Rd1 {[%clk 0:00:16.5]} 29... Rc7 {[%clk 0:00:14.6]} 30. b5 {[%clk
0:00:10.7]} 30... Nd4+ {[%clk 0:00:11.8]} 31. Kb4 {[%clk 0:00:06.6]} 31... Nxb5
{[%clk 0:00:07.4]} 32. Kxb5 {[%clk 0:00:05.4]} 32... Rxc3 {[%clk 0:00:07.6]} 33.
Rd7+ {[%clk 0:00:05.6]} 33... Kg6 {[%clk 0:00:07.3]} 34. Rxb7 {[%clk 0:00:04.8]}
34... Ra3 {[%clk 0:00:07.8]} 0-1

[Event "Early-Titled-Tuesday-Blitz-September-12-2023"]
[Site "Chess.com"]
[Date "2023.09.12"]
[Round "8"]
[White "AndresDelgado77"]
[Black "GamayevOleg"]
[Result "0-1"]
[WhiteElo "2304"]
[BlackElo "2466"]
[TimeControl "180+1"]
[EndTime "9:28:41 PDT"]
[Termination "GamayevOleg won on time"]

1. e4 {[%clk 0:03:00]} 1... d6 {[%clk 0:02:54.6]} 2. d4 {[%clk 0:02:59.6]} 2...
Nf6 {[%clk 0:02:55.2]} 3. Nc3 {[%clk 0:02:57.6]} 3... g6 {[%clk 0:02:55.2]} 4.
Bg5 {[%clk 0:02:57.8]} 4... Bg7 {[%clk 0:02:51.9]} 5. e5 {[%clk 0:02:57.5]} 5...
Nfd7 {[%clk 0:02:49.3]} 6. Nd5 {[%clk 0:02:57.2]} 6... f6 {[%clk 0:02:28.6]} 7.
exf6 {[%clk 0:02:49.4]} 7... exf6 {[%clk 0:02:15.2]} 8. Qe2+ {[%clk 0:02:48.9]}
8... Kf8 {[%clk 0:02:13.4]} 9. Bf4 {[%clk 0:02:39.8]} 9... Nb6 {[%clk
0:02:12.2]} 10. Qf3 {[%clk 0:02:16.2]} 10... Nc6 {[%clk 0:02:00.9]} 11. O-O-O
{[%clk 0:02:15.4]} 11... Bg4 {[%clk 0:01:52.2]} 12. Qxg4 {[%clk 0:02:01.8]}
12... Nxd5 {[%clk 0:01:52.2]} 13. Bg3 {[%clk 0:01:54.1]} 13... Qc8 {[%clk
0:01:41.4]} 14. Qf3 {[%clk 0:01:52.2]} 14... Qf5 {[%clk 0:01:41]} 15. Qxf5
{[%clk 0:01:49.2]} 15... gxf5 {[%clk 0:01:41.9]} 16. Bc4 {[%clk 0:01:11.1]}
16... Nde7 {[%clk 0:01:36.7]} 17. Be6 {[%clk 0:01:00.7]} 17... Nd8 {[%clk
0:01:33.7]} 18. Bd7 {[%clk 0:00:57.4]} 18... Nf7 {[%clk 0:01:33.1]} 19. Ne2
{[%clk 0:00:49.4]} 19... Rd8 {[%clk 0:01:32]} 20. Be6 {[%clk 0:00:47.4]} 20...
Ng5 {[%clk 0:01:32.4]} 21. Nf4 {[%clk 0:00:45.7]} 21... Ng6 {[%clk 0:01:30.3]}
22. Bxf5 {[%clk 0:00:42.1]} 22... Nxf4 {[%clk 0:01:28.8]} 23. Bxf4 {[%clk
0:00:41.9]} 23... Bh6 {[%clk 0:01:29.4]} 24. h4 {[%clk 0:00:36.8]} 24... Nf7
{[%clk 0:01:29.6]} 25. Bxh6+ {[%clk 0:00:36.5]} 25... Nxh6 {[%clk 0:01:30.5]}
26. Be6 {[%clk 0:00:36.9]} 26... Kg7 {[%clk 0:01:29.6]} 27. d5 {[%clk
0:00:35.7]} 27... Rde8 {[%clk 0:01:29.5]} 28. Rde1 {[%clk 0:00:34.8]} 28... f5
{[%clk 0:01:27.3]} 29. f4 {[%clk 0:00:31.3]} 29... Kf6 {[%clk 0:01:26.9]} 30. g3
{[%clk 0:00:28.3]} 30... Re7 {[%clk 0:01:27.1]} 31. Kd2 {[%clk 0:00:27.8]} 31...
Rhe8 {[%clk 0:01:27.5]} 32. c4 {[%clk 0:00:27.1]} 32... b6 {[%clk 0:01:27]} 33.
a4 {[%clk 0:00:26.4]} 33... a5 {[%clk 0:01:26.4]} 34. Bd7 {[%clk 0:00:21.4]}
34... Rxe1 {[%clk 0:01:13.9]} 35. Rxe1 {[%clk 0:00:20.9]} 35... Rxe1 {[%clk
0:01:13.9]} 36. Kxe1 {[%clk 0:00:21]} 36... Ng4 {[%clk 0:01:14.5]} 37. Ke2
{[%clk 0:00:20.2]} 37... Kg6 {[%clk 0:01:13.7]} 38. Kf3 {[%clk 0:00:15.4]} 38...
Nf6 {[%clk 0:01:14.1]} 39. Bc6 {[%clk 0:00:07.8]} 39... Ne4 {[%clk 0:01:13.1]}
40. g4 {[%clk 0:00:07.9]} 40... Nd2+ {[%clk 0:01:12.9]} 41. Ke2 {[%clk
0:00:03.3]} 41... Nxc4 {[%clk 0:01:04.9]} 42. b3 {[%clk 0:00:03.4]} 42... Na3
{[%clk 0:00:57.2]} 43. Be8+ {[%clk 0:00:03.6]} 43... Kf6 {[%clk 0:00:55.3]} 44.
g5+ {[%clk 0:00:04]} 44... Ke7 {[%clk 0:00:55.8]} 45. Bb5 {[%clk 0:00:02.8]}
45... Nc2 {[%clk 0:00:55.4]} 46. Bd3 {[%clk 0:00:02.1]} 46... Nb4 {[%clk
0:00:48.3]} 47. Bxf5 {[%clk 0:00:01.9]} 47... Nxd5 {[%clk 0:00:48.3]} 0-1